bitfinex/quotes_BTCUSD_20260103
["timestamp","ask_amount","ask_price","bid_price","bid_amount"]
[1767445879158,0.06673488,89908.0,89901.0,0.09993007]
[1767445879362,0.01112235,89909.0,89901.0,0.09993007]
[1767445879562,0.01112235,89909.0,89902.0,0.01112322]
[1767445879819,0.01112198,89912.0,89909.0,0.000999]
[1767445880036,0.01112198,89912.0,89909.0,0.00085573]
[1767445880157,0.01112198,89912.0,89906.0,0.01112272]
[1767445880366,0.01112198,89912.0,89905.0,0.01112285]
[1767445880562,0.0111221,89911.0,89904.0,0.01112297]
[1767445880971,0.0111221,89911.0,89903.0,0.01112309]
[1767445881232,0.01112235,89909.0,89903.0,0.01112309]
[1767445881614,0.01112235,89909.0,89902.0,0.01112322]
[1767445881826,0.01112248,89908.0,89902.0,0.01112322]
[1767445882257,0.0111226,89907.0,89901.0,0.09993007]
[1767445882461,0.01112248,89908.0,89902.0,0.01112322]
[1767445882972,0.01112235,89909.0,89902.0,0.01112322]
[1767445883114,0.01112235,89909.0,89903.0,0.01112309]
[1767445883531,0.01112248,89908.0,89902.0,0.01112322]
[1767445884098,0.01112248,89908.0,89901.0,0.01112334]
[1767445885125,0.01112272,89906.0,89900.0,0.01112347]
[1767445885526,0.0111226,89907.0,89901.0,0.01112334]
[1767445886163,0.01112272,89906.0,89900.0,0.01112347]
[1767445886716,0.01112297,89904.0,89899.0,0.06002457]
[1767445886919,0.01112309,89903.0,89899.0,0.06002457]
[1767445887079,0.01112297,89904.0,89899.0,0.06002457]
[1767445887665,0.01112285,89905.0,89899.0,0.06002457]
[1767445887869,0.01112297,89904.0,89899.0,0.06002457]
[1767445888952,0.01112272,89906.0,89899.0,0.07114816]
[1767445889077,0.01112272,89906.0,89904.0,0.000855]
[1767445889269,0.01112272,89906.0,89899.0,0.07114816]
[1767445889270,0.01112285,89905.0,89899.0,0.07114816]
[1767445889590,0.01112272,89906.0,89900.0,0.01112347]
[1767445889789,0.01112285,89905.0,89899.0,0.07114816]
[1767445889990,0.01112285,89905.0,89899.0,0.06002457]
[1767445890195,0.01112297,89904.0,89899.0,0.06002457]
[1767445890408,0.01112285,89905.0,89899.0,0.06002457]
[1767445890627,0.01112297,89904.0,89899.0,0.06002457]
[1767445891490,0.01112309,89903.0,89899.0,0.06002457]
[1767445891696,0.01112322,89902.0,89899.0,0.01112]
[1767445892221,0.01112322,89902.0,89899.0,0.05995943]
[1767445892935,0.0111226,89907.0,89902.0,0.000855]
[1767445893452,0.0111226,89907.0,89899.0,0.07108302]
[1767445893672,0.01112272,89906.0,89899.0,0.07108302]
[1767445893873,0.01112272,89906.0,89900.0,0.01112347]
[1767445894082,0.01112285,89905.0,89899.0,0.07108302]
[1767445894508,0.01112285,89905.0,89899.0,0.04883943]
[1767445894674,0.06673765,89905.0,89897.0,0.01112]
[1767445894871,0.06673765,89905.0,89897.0,0.02224384]
[1767445894872,0.01112309,89903.0,89897.0,0.02224384]
[1767445895205,0.01112309,89903.0,89897.0,0.01112]
[1767445895875,0.01112322,89902.0,89897.0,0.05995943]
[1767445896295,0.01112334,89901.0,89897.0,0.05995943]
[1767445896872,0.01112322,89902.0,89897.0,0.05995943]
[1767445897085,0.01112334,89901.0,89897.0,0.05995943]
[1767445897538,0.01112322,89902.0,89897.0,0.05995943]
[1767445898112,0.01112322,89902.0,89895.0,0.01112408]
[1767445898113,0.01112322,89902.0,89898.0,0.01112]
[1767445898309,0.01112322,89902.0,89899.0,0.00560011]
[1767445899521,0.01112309,89903.0,89899.0,0.00560011]
[1767445900738,0.000144,89899.0,89894.0,0.0001506]
[1767445900945,0.000144,89899.0,89897.0,0.01112]
[1767445901260,0.06673973,89902.0,89897.0,0.05995943]
[1767445901464,0.01112322,89902.0,89898.0,0.01112]
[1767445901646,0.01112334,89901.0,89898.0,0.01112]
[1767445901848,0.01112334,89901.0,89894.0,0.04899003]
[1767445902022,0.01112334,89901.0,89895.0,0.01112]
[1767445902023,0.000144,89898.0,89895.0,0.01112]
[1767445902230,0.01126771,89898.0,89895.0,0.01112]
[1767445902431,0.01112371,89898.0,89895.0,0.01112]
[1767445902628,0.01112371,89898.0,89895.0,0.05995943]
[1767445902826,0.01112359,89899.0,89895.0,0.05995943]
[1767445903252,0.01112334,89901.0,89899.0,0.000855]
[1767445903654,0.01112334,89901.0,89895.0,0.06031846]
[1767445904295,0.01112322,89902.0,89895.0,0.07144254]
[1767445904431,0.01112334,89901.0,89895.0,0.06031846]
[1767445904832,0.06673897,89903.0,89901.0,0.000855]
[1767445905260,0.01112309,89903.0,89896.0,0.05996339]
[1767445905770,0.01112309,89903.0,89897.0,0.01112384]
[1767445905973,0.01112309,89903.0,89897.0,0.02224384]
[1767445906172,0.01112309,89903.0,89898.0,0.04883943]
[1767445906333,0.01112322,89902.0,89898.0,0.04883943]
[1767445906738,0.01112334,89901.0,89898.0,0.04883943]
[1767445908630,0.06674013,89901.0,89898.0,0.04883943]
[1767445908844,0.06674013,89901.0,89898.0,0.04869543]
[1767445909673,0.01112334,89901.0,89898.0,0.04869543]
[1767445911671,0.06674053,89901.0,89898.0,0.04882233]
[1767445912193,0.05561784,89900.0,89898.0,0.04882233]
[1767445912947,0.05561784,89900.0,89898.0,0.02926542]
[1767445913143,0.05561784,89900.0,89898.0,0.0001269]
[1767445914712,0.05561784,89900.0,89892.0,0.04883943]
[1767445914713,0.06674053,89901.0,89892.0,0.04883943]
[1767445914714,0.01112371,89898.0,89892.0,0.04591633]
[1767445915072,0.01112396,89896.0,89892.0,0.04591633]
[1767445915281,0.01012496,89896.0,89892.0,0.04591633]
[1767445915883,0.01148269,89898.0,89892.0,0.05704079]
[1767445916096,0.01112384,89897.0,89892.0,0.04591633]
[1767445916294,0.01112396,89896.0,89892.0,0.04591633]
[1767445916695,0.01112408,89895.0,89893.0,0.01112]
[1767445917121,0.0667434,89897.0,89893.0,0.01112]
[1767445917673,0.01112396,89896.0,89890.0,0.0111247]
[1767445917823,0.01112384,89897.0,89894.0,0.01112]
[1767445918630,0.01148269,89898.0,89894.0,0.01112]
[1767445919454,0.01112384,89897.0,89894.0,0.01112]
[1767445919636,0.01148269,89898.0,89894.0,0.01112]
[1767445920974,0.01112384,89897.0,89894.0,0.01112]
[1767445921788,0.01148269,89898.0,89894.0,0.01112]
[1767445921926,0.01112384,89897.0,89894.0,0.01112]
[1767445922910,0.01112384,89897.0,89894.0,0.010121]
[1767445923272,0.01150401,89896.0,89895.0,0.01112]
[1767445923964,0.01112384,89897.0,89895.0,0.01112]
[1767445925679,0.06710169,89898.0,89895.0,0.01112]
[1767445926101,0.01048369,89898.0,89895.0,0.01112]
[1767445926335,0.01112322,89902.0,89895.0,0.01112]
[1767445926512,0.01112198,89912.0,89904.0,0.01112297]
[1767445926722,0.01112235,89909.0,89906.0,0.04781189]
[1767445926921,0.01112235,89909.0,89906.0,0.04776652]
[1767445927599,0.06673452,89909.0,89906.0,0.04676752]
[1767445927843,0.01112235,89909.0,89906.0,0.04676752]
[1767445930189,0.06673451,89909.0,89906.0,0.03558532]
[1767445930409,0.01112248,89908.0,89905.0,0.01112]
[1767445930610,0.01112248,89908.0,89899.0,0.04781189]
[1767445930611,0.01112285,89905.0,89899.0,0.04627351]
[1767445930862,0.01112285,89905.0,89900.0,0.01112]
[1767445930863,1e-08,89903.0,89900.0,0.01112]
[1767445931175,0.066789,89905.0,89900.0,0.01112]
[1767445931763,1e-08,89903.0,89900.0,0.01112]
[1767445932282,0.066789,89905.0,89901.0,0.01112]
[1767445932794,0.01117475,89905.0,89901.0,0.01112]
[1767445933551,0.06678952,89905.0,89901.0,0.05893189]
[1767445933756,0.01112297,89904.0,89901.0,0.05893189]
[1767445934379,0.05561549,89903.0,89901.0,0.05893189]
[1767445934575,0.00302896,89903.0,89902.0,0.00809104]
[1767445934977,0.01112297,89904.0,89902.0,0.00809104]
[1767445935182,0.01112297,89904.0,89902.0,0.00804567]
[1767445936595,0.06673825,89904.0,89902.0,0.00804567]
[1767445940283,0.0556159,89903.0,89895.0,0.04781189]
[1767445940509,0.01112347,89900.0,89896.0,0.01112]
[1767445940709,0.01112334,89901.0,89900.0,0.000999]
[1767445941139,0.01112347,89900.0,89897.0,0.04781189]
[1767445941305,0.01112347,89900.0,89899.0,0.01112]
[1767445941643,0.01112334,89901.0,89899.0,0.01112]
[1767445942632,0.01112334,89901.0,89897.0,0.04781189]
[1767445942873,0.01112334,89901.0,89898.0,0.01112]
[1767445943292,0.01112334,89901.0,89898.0,0.05893189]
[1767445945628,0.01112322,89902.0,89901.0,0.000999]
[1767445945830,0.01112334,89901.0,89898.0,0.05893189]
[1767445946870,0.01112334,89901.0,89898.0,0.04781189]
[1767445947175,0.01112359,89899.0,89893.0,0.02224433]
[1767445947380,0.01112347,89900.0,89899.0,0.000999]
[1767445947601,0.06674033,89901.0,89899.0,0.000999]
[1767445947800,0.06674033,89901.0,89899.0,0.00095363]
[1767445948001,0.01112347,89900.0,89894.0,0.01112421]
[1767445948201,0.01112347,89900.0,89895.0,0.04781189]
[1767445948370,0.01112347,89900.0,89895.0,0.05893597]
[1767445949205,0.01112334,89901.0,89895.0,0.05893597]
[1767445949432,0.01112347,89900.0,89895.0,0.04781189]
[1767445949936,0.01112347,89900.0,89895.0,0.05893597]
[1767445950239,0.01112347,89900.0,89895.0,0.04781189]
[1767445950805,0.01112334,89901.0,89895.0,0.05893597]
[1767445951418,0.01112359,89899.0,89895.0,0.04776689]
[1767445951636,0.01112359,89899.0,89896.0,0.01112]
[1767445952002,0.01112347,89900.0,89896.0,0.01112]
[1767445952443,0.01112359,89899.0,89896.0,0.01112]
[1767445952773,0.01112347,89900.0,89896.0,0.01107463]
[1767445952952,0.01112359,89899.0,89896.0,0.01107463]
[1767445953131,0.01112347,89900.0,89896.0,0.01107463]
[1767445953472,0.01112347,89900.0,89897.0,0.01112]
[1767445954442,0.01112334,89901.0,89897.0,0.01112]
[1767445955003,0.01112309,89903.0,89897.0,0.01112]
[1767445955004,0.01112309,89903.0,89897.0,0.00381928]
[1767445955368,0.01112297,89904.0,89897.0,0.01494312]
[1767445955571,0.01112309,89903.0,89897.0,0.01494312]
[1767445955770,0.01112309,89903.0,89898.0,0.04704871]
[1767445955996,0.01112309,89903.0,89898.0,0.05816871]
[1767445956588,0.01112309,89903.0,89898.0,0.06929242]
[1767445956969,0.01112309,89903.0,89898.0,0.05816871]
[1767445957380,0.01112322,89902.0,89898.0,0.05816871]
[1767445960113,0.01112309,89903.0,89898.0,0.05816871]
[1767445960439,0.01112322,89902.0,89898.0,0.05816871]
[1767445961340,0.01112309,89903.0,89898.0,0.05816871]
[1767445961536,0.01112309,89903.0,89899.0,0.04704871]
[1767445961941,0.01112297,89904.0,89899.0,0.04704871]
[1767445962106,0.01112309,89903.0,89899.0,0.04704871]
[1767445962709,0.01112297,89904.0,89899.0,0.04704871]
[1767445963324,0.01112309,89903.0,89899.0,0.04704871]
[1767445963524,0.01112297,89904.0,89899.0,0.04704871]
[1767445964049,0.06678949,89905.0,89899.0,0.0581723]
[1767445964270,0.01112297,89904.0,89899.0,0.04704871]
[1767445964461,0.01112309,89903.0,89899.0,0.04700334]
[1767445964620,0.01112322,89902.0,89899.0,0.04700334]
[1767445965771,0.06673939,89902.0,89899.0,0.04700334]
[1767445965969,0.01112322,89902.0,89899.0,0.04700334]
[1767445966749,0.01112334,89901.0,89898.0,0.01112]
[1767445966997,0.01112334,89901.0,89898.0,0.010121]
[1767445970269,0.01112334,89901.0,89898.0,0.0100773]
[1767445970618,0.01112322,89902.0,89898.0,0.0100773]
[1767445971575,0.06673838,89904.0,89898.0,0.02120101]
[1767445971730,0.01112309,89903.0,89898.0,0.01003193]
[1767445971935,0.01112309,89903.0,89898.0,0.00170679]
[1767445972728,0.01112309,89903.0,89898.0,0.0128305]
[1767445973219,0.01112297,89904.0,89903.0,0.000999]
[1767445973920,0.01112297,89904.0,89898.0,0.0128305]
[1767445973921,0.01112297,89904.0,89899.0,0.04704871]
[1767445974712,0.01112309,89903.0,89899.0,0.04704871]
[1767445975698,0.01112297,89904.0,89899.0,0.04704871]
[1767445976715,0.01112309,89903.0,89899.0,0.04704871]
[1767445977637,0.01112297,89904.0,89899.0,0.04704871]
[1767445977987,0.01112309,89903.0,89899.0,0.04704871]
[1767445978195,0.01112309,89903.0,89899.0,0.04700334]
[1767445979244,0.01112297,89904.0,89899.0,0.04700334]
[1767445979833,0.01117475,89905.0,89904.0,0.000999]
[1767445980304,0.01112297,89904.0,89899.0,0.04700334]
[1767445980743,0.05561377,89906.0,89899.0,0.05812693]
[1767445980942,0.01112297,89904.0,89899.0,0.04700334]
[1767445981155,0.01112285,89905.0,89904.0,0.000999]
[1767445981580,0.01112297,89904.0,89899.0,0.05812693]
[1767445982564,0.01112285,89905.0,89899.0,0.05812693]
[1767445983553,0.01112297,89904.0,89900.0,0.04978391]
[1767445983952,4.391e-05,89906.0,89904.0,0.000999]
[1767445984213,0.01112285,89905.0,89900.0,0.04978391]
[1767445984363,0.01112297,89904.0,89900.0,0.04978391]
[1767445985371,0.01112309,89903.0,89900.0,0.04973854]
[1767445985574,0.01112297,89904.0,89900.0,0.04973854]
[1767445986715,0.01112297,89904.0,89898.0,0.0128305]
[1767445986919,0.01112309,89903.0,89898.0,0.0128305]
[1767445987957,0.01112285,89905.0,89898.0,0.06261441]
[1767445988140,0.01112285,89905.0,89903.0,0.000999]
[1767445988278,0.01112297,89904.0,89899.0,0.01112359]
[1767445988682,0.01112285,89905.0,89899.0,0.01112359]
[1767445988932,0.01112285,89905.0,89900.0,0.01112347]
[1767445990260,0.01112285,89905.0,89898.0,0.06261441]
[1767445990384,0.06678061,89906.0,89900.0,0.01112347]
[1767445990585,0.01112285,89905.0,89899.0,0.01112359]
[1767445990803,0.01112297,89904.0,89899.0,0.01112359]
[1767445991010,0.01112285,89905.0,89899.0,0.01112359]
[1767445991617,0.000143,89899.0,89898.0,0.0514907]
[1767445992037,0.01112285,89905.0,89898.0,0.06256904]
[1767445992236,0.01112285,89905.0,89899.0,0.01112359]
[1767445992750,0.01112297,89904.0,89898.0,0.06256904]
[1767445993072,0.01112297,89904.0,89899.0,0.01112359]
[1767445993451,0.01112285,89905.0,89899.0,0.01112359]
[1767445995142,0.01112285,89905.0,89898.0,0.06256904]
[1767445995344,0.01112297,89904.0,89898.0,0.05144533]
[1767445995656,0.01112297,89904.0,89898.0,0.06256904]
[1767445996061,0.01112297,89904.0,89899.0,0.01112359]
[1767445996266,0.01112297,89904.0,89898.0,0.06256904]
[1767445996473,0.01112309,89903.0,89898.0,0.06256904]
[1767445996681,0.01112309,89903.0,89898.0,0.05144533]
[1767445997215,0.01112309,89903.0,89898.0,0.00166142]
[1767445997860,0.01112309,89903.0,89898.0,0.01278513]
[1767445998685,0.01112297,89904.0,89898.0,0.01278513]
[1767446000290,0.01112309,89903.0,89898.0,0.00166142]
[1767446000489,0.01112297,89904.0,89898.0,0.01278513]
[1767446000921,0.01112297,89904.0,89899.0,0.01112359]
[1767446001084,0.01112297,89904.0,89898.0,0.01278513]
[1767446001286,0.01112297,89904.0,89899.0,0.01112359]
[1767446001494,0.01112297,89904.0,89898.0,0.01278513]
[1767446002039,0.01112297,89904.0,89899.0,0.01112359]
[1767446002459,0.01116663,89906.0,89900.0,0.01112347]
[1767446002612,0.01112285,89905.0,89900.0,0.01112347]
[1767446002814,0.01116663,89906.0,89900.0,0.01112347]
[1767446003021,4.391e-05,89906.0,89901.0,0.01112334]
[1767446003322,0.01116663,89906.0,89900.0,0.01112347]
[1767446003658,0.01116663,89906.0,89901.0,0.01112334]
[1767446003836,0.01112285,89905.0,89899.0,0.01112359]
[1767446004736,0.01112285,89905.0,89900.0,0.01112347]
[1767446004923,0.01112285,89905.0,89899.0,0.01112359]
[1767446005931,0.01112285,89905.0,89898.0,0.06840335]
[1767446006134,0.01116663,89906.0,89899.0,0.01112359]
[1767446006338,0.01112285,89905.0,89900.0,0.01112347]
[1767446007393,0.01112285,89905.0,89899.0,0.01112359]
[1767446008143,0.01116663,89906.0,89900.0,0.06090738]
[1767446008544,0.01112285,89905.0,89900.0,0.06090738]
[1767446008798,0.01116663,89906.0,89900.0,0.06090738]
[1767446009358,0.01112285,89905.0,89900.0,0.01112347]
[1767446010196,4.391e-05,89906.0,89901.0,0.05933426]
[1767446010395,0.01116663,89906.0,89901.0,0.05933426]
[1767446011108,4.391e-05,89906.0,89901.0,0.05933426]
[1767446011259,4.391e-05,89906.0,89902.0,0.01112322]
[1767446011655,0.0111226,89907.0,89902.0,0.01112322]
[1767446011849,0.0111226,89907.0,89902.0,0.01119501]
[1767446012056,0.0111226,89907.0,89902.0,7.179e-05]
[1767446012262,0.01112248,89908.0,89902.0,0.01119501]
[1767446012474,0.01112248,89908.0,89902.0,7.179e-05]
[1767446012708,0.0111226,89907.0,89902.0,0.01119501]
[1767446013038,0.0111226,89907.0,89902.0,7.179e-05]
[1767446013188,0.01112272,89906.0,89902.0,7.179e-05]
[1767446013526,0.0111226,89907.0,89902.0,7.179e-05]
[1767446013687,0.0111226,89907.0,89902.0,0.01119501]
[1767446014090,0.0111226,89907.0,89902.0,7.179e-05]
[1767446014299,0.0111226,89907.0,89902.0,0.01119501]
[1767446014495,0.01112272,89906.0,89902.0,7.179e-05]
[1767446014680,0.0111226,89907.0,89902.0,7.179e-05]
[1767446016189,0.01112272,89906.0,89902.0,7.179e-05]
[1767446017124,0.01112285,89905.0,89902.0,7.179e-05]
[1767446017306,0.01112285,89905.0,89902.0,7.9e-07]
[1767446019353,0.01112272,89906.0,89902.0,7.9e-07]
[1767446021425,0.0111226,89907.0,89902.0,7.9e-07]
[1767446021873,0.06673413,89909.0,89902.0,0.01112401]
[1767446022437,0.01112248,89908.0,89903.0,0.01112309]
[1767446022632,0.00012523,89903.0,89902.0,0.01112401]
[1767446023901,0.00012523,89903.0,89902.0,7.9e-07]
[1767446028227,0.01112272,89906.0,89902.0,7.9e-07]
[1767446028629,0.0111226,89907.0,89902.0,0.01112401]
[1767446029239,0.00014321,89906.0,89902.0,0.01112401]
[1767446029401,0.00014321,89906.0,89902.0,7.9e-07]
[1767446029609,0.00854773,89908.0,89902.0,7.9e-07]
[1767446029811,0.0111226,89907.0,89902.0,0.01112401]
[1767446030328,0.0111226,89907.0,89902.0,7.9e-07]
[1767446030458,0.00854773,89908.0,89903.0,0.01112309]
[1767446030958,0.00854773,89908.0,89902.0,0.01112401]
[1767446031208,0.00854773,89908.0,89903.0,0.01112309]
[1767446031413,0.0111226,89907.0,89902.0,0.01112401]
[1767446031744,0.00854773,89908.0,89903.0,0.01112309]
[1767446031917,0.0111226,89907.0,89902.0,0.01112401]
[1767446032318,0.00854773,89908.0,89903.0,0.01112309]
[1767446032866,0.05561091,89911.0,89904.0,0.01112297]
[1767446033065,0.05561091,89911.0,89903.0,0.01112309]
[1767446033066,0.01112235,89909.0,89903.0,0.01112309]
[1767446033481,0.01112248,89908.0,89903.0,0.01112309]
[1767446033915,0.01112235,89909.0,89903.0,0.01112309]
[1767446034123,0.01112248,89908.0,89902.0,0.01112401]
[1767446034302,0.01112248,89908.0,89903.0,0.01112309]
[1767446034919,0.0111226,89907.0,89902.0,0.01112401]
[1767446035138,0.01112235,89909.0,89903.0,0.01112309]
[1767446035282,0.01112248,89908.0,89902.0,0.01112401]
[1767446035481,0.01112235,89909.0,89903.0,0.01112309]
[1767446035737,0.01112235,89909.0,89904.0,0.01112297]
[1767446035920,0.01112223,89910.0,89904.0,0.01112297]
[1767446036236,0.01112248,89908.0,89902.0,0.01112401]
[1767446036420,0.01112235,89909.0,89903.0,0.01112309]
[1767446037393,0.01112248,89908.0,89902.0,0.01112401]
[1767446037886,0.01112248,89908.0,89903.0,0.01112309]
[1767446038299,0.01112235,89909.0,89904.0,0.01112297]
[1767446038457,0.01112248,89908.0,89903.0,0.01112309]
[1767446038858,0.01112248,89908.0,89902.0,0.01112401]
[1767446039079,0.01112235,89909.0,89903.0,0.01112309]
[1767446039280,0.01112248,89908.0,89903.0,0.01112309]
[1767446039459,0.01112235,89909.0,89904.0,0.01112297]
[1767446039780,0.01112235,89909.0,89903.0,0.01112309]
[1767446039946,0.01112235,89909.0,89904.0,0.01112297]
[1767446040382,0.01112248,89908.0,89903.0,0.01112309]
[1767446040581,0.01112235,89909.0,89904.0,0.01112297]
[1767446041514,0.01112248,89908.0,89903.0,0.01112309]
[1767446041713,0.0111226,89907.0,89902.0,0.01112401]
[1767446041884,0.01112248,89908.0,89903.0,0.01112309]
[1767446042094,0.0111226,89907.0,89902.0,0.01112401]
[1767446042288,0.01112248,89908.0,89903.0,0.01112309]
[1767446042482,0.01112235,89909.0,89904.0,0.01112297]
[1767446042827,0.01112248,89908.0,89903.0,0.01112309]
[1767446043368,0.01112235,89909.0,89903.0,0.01112309]
[1767446043905,0.01112248,89908.0,89903.0,0.01112309]
[1767446044083,0.01112235,89909.0,89904.0,0.01112297]
[1767446044312,0.01112248,89908.0,89903.0,0.01112309]
[1767446044487,0.01112235,89909.0,89903.0,0.01112309]
[1767446044687,0.01112235,89909.0,89904.0,0.01112297]
[1767446044869,0.01112248,89908.0,89903.0,0.01112309]
[1767446045409,0.01112235,89909.0,89904.0,0.01112297]
[1767446045594,0.01112235,89909.0,89902.0,0.01112401]
[1767446046312,0.01112248,89908.0,89902.0,0.01112401]
[1767446046511,0.01112248,89908.0,89903.0,0.01112309]
[1767446048500,0.01112248,89908.0,89904.0,0.01112297]
[1767446048922,0.01112235,89909.0,89904.0,0.01112297]
[1767446049128,0.01112248,89908.0,89903.0,0.01112309]
[1767446049729,0.01112248,89908.0,89904.0,0.01112297]
[1767446049955,0.01112248,89908.0,89903.0,0.01112309]
[1767446050251,0.01112235,89909.0,89904.0,0.01112297]
[1767446050393,0.01112248,89908.0,89903.0,0.01112309]
[1767446050595,0.01112235,89909.0,89904.0,0.01112297]
[1767446051217,0.01112235,89909.0,89902.0,0.01112401]
[1767446051422,0.01112248,89908.0,89903.0,0.01112309]
[1767446052265,0.01112248,89908.0,89904.0,0.01112297]
[1767446052468,0.01112235,89909.0,89904.0,0.01112297]
[1767446052665,0.01112235,89909.0,89905.0,0.01112285]
[1767446053192,0.01112235,89909.0,89904.0,0.01112297]
[1767446054110,0.07785777,89910.0,89905.0,0.01112285]
[1767446054314,0.01112235,89909.0,89904.0,0.01112297]
[1767446054525,0.07785777,89910.0,89905.0,0.01112285]
[1767446054735,0.01112235,89909.0,89904.0,0.01112297]
[1767446055324,0.01112248,89908.0,89903.0,0.01112309]
[1767446055682,0.01112248,89908.0,89904.0,0.01112297]
[1767446055886,0.01112235,89909.0,89904.0,0.01112297]
[1767446057095,0.01112235,89909.0,89903.0,0.01112309]
[1767446057300,0.01112235,89909.0,89904.0,0.01112297]
[1767446057446,0.01112235,89909.0,89903.0,0.01112309]
[1767446057644,0.01112235,89909.0,89904.0,0.01112297]
[1767446057846,0.01112248,89908.0,89903.0,0.01112309]
[1767446059591,0.01112235,89909.0,89903.0,0.01112309]
[1767446059794,0.01112235,89909.0,89904.0,0.01112297]
[1767446060357,0.01112248,89908.0,89903.0,0.01112309]
[1767446063697,0.02224624,89910.0,89904.0,0.01112297]
[1767446063893,0.01112401,89910.0,89905.0,0.01112285]
[1767446064118,0.01112186,89913.0,89907.0,0.0111226]
[1767446064314,0.0111221,89911.0,89906.0,0.01112272]
[1767446064497,0.01112198,89912.0,89907.0,0.0111226]
[1767446065041,0.0111221,89911.0,89906.0,0.01112272]
[1767446065917,0.0111221,89911.0,89905.0,0.06673676]
[1767446066539,0.01112223,89910.0,89905.0,0.01112285]
[1767446067515,0.0111221,89911.0,89906.0,0.01112272]
[1767446068560,0.01112223,89910.0,89905.0,0.01112285]
[1767446071973,0.01112223,89910.0,89906.0,0.01112272]
[1767446072193,0.01112223,89910.0,89905.0,0.01112285]
[1767446073023,0.0111221,89911.0,89906.0,0.01112272]
[1767446073229,0.01112223,89910.0,89905.0,0.01112285]
[1767446073440,0.01112223,89910.0,89906.0,0.01112272]
[1767446074395,0.000999,89906.0,89905.0,0.01112285]
[1767446074970,0.01112223,89910.0,89905.0,0.01112285]
[1767446075804,0.01112235,89909.0,89904.0,0.01112297]
[1767446075930,0.000999,89905.0,89904.0,0.01112297]
[1767446076349,0.01112223,89910.0,89905.0,0.01112285]
[1767446076745,0.01112235,89909.0,89904.0,0.01112297]
[1767446076950,0.01112223,89910.0,89904.0,0.01112297]
[1767446077150,0.01112223,89910.0,89905.0,0.01112285]
[1767446078202,0.01112248,89908.0,89903.0,0.01112309]
[1767446078519,0.06673499,89908.0,89902.0,7.9e-07]
[1767446078720,0.01112248,89908.0,89902.0,0.01112401]
[1767446079088,0.0111226,89907.0,89902.0,0.01112401]
[1767446079287,0.01112248,89908.0,89903.0,0.01112309]
[1767446079708,0.01112235,89909.0,89904.0,0.01112297]
[1767446079915,0.01112248,89908.0,89904.0,0.01112297]
[1767446080114,0.01112235,89909.0,89904.0,0.01112297]
[1767446080426,0.01112248,89908.0,89903.0,0.01112309]
[1767446080925,0.0111226,89907.0,89902.0,7.9e-07]
[1767446081232,0.01112272,89906.0,89902.0,7.9e-07]
[1767446081891,0.01112285,89905.0,89902.0,7.9e-07]
[1767446082334,0.01112272,89906.0,89902.0,7.9e-07]
[1767446082739,0.01112285,89905.0,89902.0,7.9e-07]
[1767446083640,0.01112285,89905.0,89901.0,0.00281431]
[1767446084160,0.01112285,89905.0,89901.0,0.01393765]
[1767446084366,0.01112272,89906.0,89901.0,0.01393765]
[1767446084916,0.01112272,89906.0,89902.0,0.01112322]
[1767446085185,0.01112272,89906.0,89901.0,0.01393765]
[1767446085349,0.0111226,89907.0,89902.0,0.01112322]
[1767446086480,0.01112272,89906.0,89901.0,0.01393765]
[1767446086866,0.01112272,89906.0,89902.0,0.01112322]
[1767446087067,0.01112272,89906.0,89901.0,0.01393765]
[1767446088385,0.0111226,89907.0,89902.0,0.01112322]
[1767446089163,0.01112248,89908.0,89903.0,0.01112309]
[1767446089776,0.0111226,89907.0,89902.0,0.01112322]
[1767446089955,0.01112248,89908.0,89903.0,0.01112309]
[1767446090358,0.01112235,89909.0,89904.0,0.01112297]
[1767446090563,0.01112235,89909.0,89903.0,0.01112309]
[1767446090784,0.01112235,89909.0,89904.0,0.01112297]
[1767446091201,0.01112248,89908.0,89903.0,0.01112309]
[1767446091441,0.01112235,89909.0,89904.0,0.01112297]
[1767446093012,0.01112223,89910.0,89905.0,0.01112285]
[1767446093436,0.01112235,89909.0,89904.0,0.01112297]
[1767446094945,0.01112248,89908.0,89904.0,0.01112297]
[1767446095121,0.01112235,89909.0,89904.0,0.01112297]
[1767446099596,0.01112223,89910.0,89905.0,0.01112285]
[1767446099798,0.01112235,89909.0,89904.0,0.01112297]
[1767446100221,0.01112235,89909.0,89905.0,0.01112285]
[1767446100637,0.04956108,89929.0,89910.0,0.05561062]
[1767446100832,0.00019791,89926.0,89920.0,0.01112099]
[1767446101036,0.01111975,89930.0,89927.0,0.01112013]
[1767446101037,0.03337009,89930.0,89927.0,0.01112013]
[1767446101237,0.01739093,89930.0,89927.0,0.01112013]
[1767446101441,1e-08,89933.0,89929.0,0.01111988]
[1767446102042,0.01111939,89933.0,89928.0,0.01112]
[1767446102255,0.01111963,89931.0,89926.0,0.01112025]
[1767446102463,0.000999,89928.0,89925.0,0.01112037]
[1767446102653,0.000999,89928.0,89925.0,0.04448604]
[1767446102986,0.01111988,89929.0,89925.0,0.03336567]
[1767446103476,0.01112,89928.0,89925.0,0.03336567]
[1767446103683,0.01112,89928.0,89925.0,0.03236667]
[1767446104039,0.01111988,89929.0,89925.0,0.03236667]
[1767446104244,0.06671901,89930.0,89925.0,0.04348704]
[1767446104572,0.01111975,89930.0,89926.0,0.01112025]
[1767446104836,0.01111988,89929.0,89925.0,0.03236667]
[1767446105020,0.01111988,89929.0,89924.0,0.0111205]
[1767446105272,0.01112,89928.0,89924.0,0.03336567]
[1767446105403,0.01112,89928.0,89924.0,0.05560617]
[1767446105742,0.01112,89928.0,89924.0,0.04448567]
[1767446106238,0.01111975,89930.0,89924.0,0.05560617]
[1767446106451,0.01111951,89932.0,89928.0,0.000999]
[1767446106655,0.01111988,89945.0,89928.0,0.000999]
[1767446106656,0.00988663,89939.0,89933.0,0.01111938]
[1767446106791,0.01111815,89943.0,89938.0,0.01111877]
[1767446106995,0.04956108,89943.0,89939.0,0.01111864]
[1767446107258,0.04956108,89943.0,89940.0,0.01111852]
[1767446107800,0.04956108,89943.0,89939.0,0.01102792]
[1767446107999,0.06067923,89943.0,89938.0,0.01111877]
[1767446110020,0.04956108,89943.0,89939.0,0.01111864]
[1767446110754,0.06067923,89943.0,89939.0,0.01111864]
[1767446110958,0.04956108,89943.0,89939.0,0.01111864]
[1767446111547,0.04956108,89943.0,89940.0,0.01111852]
[1767446111954,0.04856208,89943.0,89940.0,0.01111852]
[1767446112655,0.00015,89944.0,89941.0,0.01111839]
[1767446113754,0.00015,89944.0,89941.0,0.01107303]
[1767446114178,1e-08,89944.0,89943.0,0.05559076]
[1767446114403,1e-08,89944.0,89943.0,0.04725916]
[1767446117213,0.01111691,89953.0,89948.0,0.01111753]
[1767446117444,0.01111704,89952.0,89947.0,0.01111765]
[1767446117849,0.01111679,89954.0,89947.0,0.01111765]
[1767446118144,0.07179774,89955.0,89950.0,0.01111728]
[1767446118646,0.05558131,89959.0,89951.0,0.01111716]
[1767446118647,0.01111617,89959.0,89951.0,0.01111716]
[1767446118803,0.01111629,89958.0,89953.0,0.01111691]
[1767446118996,0.01111617,89959.0,89954.0,0.01111679]
[1767446119189,0.01111629,89958.0,89953.0,0.01111691]
[1767446119643,0.01111629,89958.0,89952.0,0.01111704]